bitfinex/quotes_SOLUSD_20250630
["timestamp","ask_amount","ask_price","bid_price","bid_amount"]
[1751272505063,3.4828168,149.64,149.6,4.4912218]
[1751272505263,3.4828168,149.64,149.61,4.4912218]
[1751272505486,3.4828168,149.64,149.58,1.5132]
[1751272505700,5.34514845,149.67,149.61,4.4912218]
[1751272506003,7.97360671,149.65,149.61,4.4912218]
[1751272506177,7.97360671,149.65,149.58,1.5132]
[1751272506178,3.48238491,149.65,149.58,1.5132]
[1751272506500,3.48238491,149.65,149.61,4.4912218]
[1751272506792,4.4912218,149.64,149.59,9.83915553]
[1751272506972,7.97365405,149.64,149.59,5.34793373]
[1751272507171,7.97365405,149.64,149.59,9.83915553]
[1751272507790,3.48243225,149.64,149.59,9.83915553]
[1751272507996,7.97365405,149.64,149.59,9.83915553]
[1751272508595,4.4912218,149.63,149.59,5.34793373]
[1751272508998,4.4912218,149.63,149.59,9.83915553]
[1751272509701,7.97365405,149.64,149.59,9.83915553]
[1751272510279,3.48243225,149.64,149.59,9.83915553]
[1751272510592,4.4912218,149.63,149.58,12.66141703]
[1751272510795,4.4912218,149.62,149.58,7.3132]
[1751272511102,4.4912218,149.61,149.58,5.8]
[1751272511307,4.4912218,149.6,149.58,5.8]
[1751272511681,34.82861623,149.64,149.58,5.8]
[1751272511903,4.4912218,149.61,149.58,5.8]
[1751272512099,29.48243225,149.64,149.6,4.4912218]
[1751272512405,3.48243225,149.64,149.6,4.4912218]
[1751272512590,3.48243225,149.64,149.58,11.14809164]
[1751272512792,146.9,149.65,149.58,24.51886313]
[1751272512992,146.9,149.65,149.62,4.4912218]
[1751272513904,146.9,149.65,149.63,4.4912218]
[1751272514089,4.4912218,149.69,149.64,4.4912218]
[1751272514503,7.97283361,149.68,149.63,4.4912218]
[1751272514695,3.48161181,149.68,149.63,9.83747118]
[1751272515007,4.4912218,149.67,149.63,5.34624938]
[1751272515307,4.4912218,149.67,149.63,9.83747118]
[1751272515489,3.48161181,149.68,149.63,9.83747118]
[1751272515690,4.4912218,149.67,149.63,9.83747118]
[1751272515889,7.97283361,149.68,149.63,5.34624938]
[1751272516091,7.97283361,149.68,149.63,9.83747118]
[1751272516829,4.4912218,149.67,149.62,6.94637556]
[1751272517011,4.4912218,149.67,149.62,5.34677556]
[1751272517195,4.4912218,149.66,149.62,5.34677556]
[1751272517394,146.9,149.67,149.6,4.4912218]
[1751272517707,4.4912218,149.64,149.59,5.9959218]
[1751272517894,4.4912218,149.64,149.59,11.34384612]
[1751272518299,4.4912218,149.63,149.59,11.34384612]
[1751272520499,4.4912218,149.64,149.59,11.34384612]
[1751272521229,4.4912218,149.64,149.6,4.4912218]
[1751272521395,5.34602585,149.65,149.6,9.83868214]
[1751272521396,4.4912218,149.65,149.6,9.83868214]
[1751272522999,4.4912218,149.65,149.6,4.4912218]
[1751272523208,4.4912218,149.65,149.6,9.8387787]
[1751272523408,9.83718088,149.65,149.59,1.5047]
[1751272523714,4.4912218,149.63,149.59,4.4912218]
[1751272524217,4.4912218,149.64,149.59,4.4912218]
[1751272524420,4.4912218,149.63,149.59,4.4912218]
[1751272525222,4.4912218,149.63,149.6,4.92131087]
[1751272525424,4.4912218,149.64,149.59,9.8391352]
[1751272525592,4.4912218,149.64,149.6,4.92183908]
[1751272525795,4.4912218,149.64,149.61,4.92183908]
[1751272525992,26.0,149.62,149.57,1.3991385]
[1751272526217,4.4912218,149.58,149.57,1.3991385]
[1751272526616,30.4912218,149.58,149.57,1.3991385]
[1751272527217,35.83953039,149.58,149.57,1.3991385]
[1751272527406,26.0,149.58,149.57,1.3991385]
[1751272527605,31.34830859,149.58,149.57,1.3991385]
[1751272527811,35.83953039,149.58,149.57,1.3991385]
[1751272528811,31.34830859,149.58,149.57,1.3991385]
[1751272529007,35.83953039,149.58,149.57,1.3991385]
[1751272531601,5.34806808,149.59,149.57,1.3991385]
[1751272531802,9.83928988,149.59,149.57,1.3991385]
[1751272532001,5.34806808,149.59,149.57,1.3991385]
[1751272532321,31.34806808,149.59,149.58,4.95448957]
[1751272533505,26.0,149.59,149.58,4.95448957]
[1751272534110,35.83917286,149.59,149.58,4.95448957]
[1751272534928,39.32270679,149.59,149.58,4.95448957]
[1751272535329,29.81783353,149.59,149.58,9.91568564]
[1751272535630,34.30905533,149.59,149.58,9.91568564]
[1751272537127,28.96110427,149.59,149.58,9.91568564]
[1751272537332,152.24753973,149.61,149.58,9.91568564]
[1751272537633,150.38311841,149.61,149.59,9.91568564]
[1751272537938,146.9,149.61,149.6,14.40690744]
[1751272538432,152.24521297,149.67,149.6,14.40690744]
[1751272538606,146.9,149.67,149.64,4.4912218]
[1751272538923,146.9,149.67,149.65,9.91568564]
[1751272539229,146.9,149.67,149.66,9.91568564]
[1751272539524,146.9,149.67,149.66,4.95448957]
[1751272540327,152.24509253,149.67,149.66,4.95448957]
[1751272541807,146.9,149.67,149.66,4.95448957]
[1751272542325,155.72652182,149.67,149.66,4.95448957]
[1751272542620,155.72652182,149.67,149.65,4.95448957]
[1751272542811,155.72652182,149.67,149.64,4.4912218]
[1751272543013,26.0,149.63,149.58,4.4912218]
[1751272543229,30.4912218,149.63,149.59,4.97574915]
[1751272543429,4.4912218,149.64,149.6,4.97574915]
[1751272543733,4.4912218,149.64,149.57,1.3991385]
[1751272543734,5.34616412,149.64,149.57,1.3991385]
[1751272543942,4.4912218,149.6,149.57,1.3991385]
[1751272545946,5.34795106,149.59,149.57,1.3991385]
[1751272546453,13.07030254,149.59,149.57,1.3991385]
[1751272546865,13.07007092,149.6,149.57,1.3991385]
[1751272547042,5.34771944,149.6,149.57,9.12148998]
[1751272547443,13.07007092,149.6,149.57,1.3991385]
[1751272549462,7.72235148,149.59,149.57,1.3991385]
[1751272551155,7.72235148,149.61,149.57,1.3991385]
[1751272551656,5.34759358,149.6,149.57,1.3991385]
[1751272553663,5.34723614,149.61,149.57,1.3991385]
[1751272554564,31.34695695,149.62,149.57,9.12148998]
[1751272554744,39.06930843,149.62,149.57,9.12148998]
[1751272555263,7.72235148,149.61,149.57,1.3991385]
[1751272555441,7.72235148,149.59,149.57,1.3991385]
[1751272555637,13.07040552,149.59,149.57,1.3991385]
[1751272556136,5.34805404,149.59,149.57,1.3991385]
[1751272557055,26.0,149.62,149.57,1.3991385]
[1751272557248,7.72235148,149.61,149.57,1.3991385]
[1751272558041,13.06958762,149.61,149.57,1.3991385]
[1751272558457,5.34723614,149.61,149.57,1.3991385]
[1751272558652,13.06958762,149.61,149.57,1.3991385]
[1751272559160,39.06926742,149.62,149.57,9.12148998]
[1751272559749,31.34691594,149.62,149.57,9.12148998]
[1751272559948,31.34691594,149.62,149.58,7.72235148]
[1751272560260,39.06926742,149.62,149.57,14.4701162]
[1751272560467,39.06926742,149.62,149.57,9.12148998]
[1751272560967,7.72235148,149.61,149.57,1.3991385]
[1751272561470,31.34691594,149.62,149.57,1.3991385]
[1751272561471,7.72235148,149.59,149.57,1.3991385]
[1751272563346,13.07023395,149.6,149.57,1.3991385]
[1751272564967,5.34788247,149.6,149.57,1.3991385]
[1751272565444,13.07023395,149.6,149.57,1.3991385]
[1751272566764,16.55322047,149.61,149.57,1.3991385]
[1751272567064,8.83086899,149.61,149.57,1.3991385]
[1751272567362,16.55322047,149.61,149.57,1.3991385]
[1751272567846,3.48352269,149.61,149.57,11.25183499]
[1751272568052,3.48352269,149.61,149.58,4.50415043]
[1751272568242,3.48352269,149.61,149.57,6.74768456]
[1751272568442,3.48352269,149.61,149.57,11.25183499]
[1751272568766,3.48352269,149.61,149.57,6.74768456]
[1751272569067,3.48352269,149.61,149.57,11.25183499]
[1751272569444,13.33498449,149.61,149.57,1.3991385]
[1751272572769,7.98767312,149.61,149.57,6.74772614]
[1751272573066,4.50415043,149.61,149.57,6.74772614]
[1751272575969,26.1,149.62,149.58,4.50415043]
[1751272576155,26.1,149.62,149.57,6.74772614]
[1751272576356,26.1,149.62,149.58,4.50415043]
[1751272577872,0.1,149.62,149.59,4.50415043]
[1751272578380,0.1,149.62,149.58,9.85234788]
[1751272579449,0.1,149.62,149.59,4.50415043]
[1751272580272,4.50415043,149.61,149.57,6.74770461]
[1751272580568,4.50415043,149.61,149.57,1.3991385]
[1751272580769,4.50415043,149.61,149.57,6.74779971]
[1751272580953,4.50415043,149.61,149.57,1.3991385]
[1751272581745,4.50415043,149.58,149.57,1.3991385]
[1751272581969,5.34759358,149.6,149.57,1.3991385]
[1751272582150,4.50415043,149.58,149.57,1.3991385]
[1751272582750,5.84759358,149.6,149.57,1.3991385]
[1751272582751,4.50415043,149.59,149.57,1.3991385]
[1751272586670,9.85174401,149.6,149.57,1.3991385]
[1751272588177,9.85225689,149.59,149.57,1.3991385]
[1751272588761,5.34810646,149.59,149.57,1.3991385]
[1751272588957,4.50415043,149.58,149.57,1.3991385]
[1751272590174,9.85245902,149.58,149.57,1.3991385]
[1751272590377,5.34830859,149.58,149.57,1.3991385]
[1751272590677,9.85222194,149.59,149.57,1.3991385]
[1751272590880,31.34766849,149.6,149.57,1.3991385]
[1751272591059,30.50415043,149.6,149.57,1.3991385]
[1751272591466,26.0,149.6,149.57,1.3991385]
[1751272591672,30.50415043,149.6,149.57,1.3991385]
[1751272593577,26.0,149.6,149.57,1.3991385]
[1751272593890,9.85161389,149.61,149.57,1.3991385]
[1751272595090,4.50415043,149.6,149.57,1.3991385]
[1751272595497,9.85174665,149.6,149.57,1.3991385]
[1751272602898,35.95124046,149.62,149.57,5.90328893]
[1751272604905,35.95124046,149.62,149.58,4.50415043]
[1751272605604,31.44709003,149.62,149.58,4.50415043]
[1751272605788,35.95124046,149.62,149.57,1.3991385]
[1751272605981,4.50415043,149.61,149.57,5.90328893]
[1751272607293,4.50415043,149.61,149.57,1.3991385]
[1751272607502,4.50415043,149.61,149.57,5.90328893]
[1751272607705,4.50415043,149.61,149.57,1.3991385]
[1751272607905,4.50415043,149.61,149.57,5.90328893]
[1751272608502,4.50415043,149.59,149.57,1.3991385]
[1751272608685,4.50415043,149.58,149.57,1.3991385]
[1751272609003,30.50415043,149.58,149.57,1.3991385]
[1751272610084,35.85245902,149.58,149.57,1.3991385]
[1751272611501,31.34830859,149.58,149.57,1.3991385]
[1751272611703,35.85245902,149.58,149.57,1.3991385]
[1751272614711,103.64870251,149.58,149.55,5.63508439]
[1751272615008,103.64870251,149.58,149.46,4.50415043]
[1751272615009,18.64964886,149.53,149.46,4.50415043]
[1751272615212,4.50415043,149.51,149.44,1.5215]
[1751272615380,4.50415043,149.51,149.47,4.50415043]
[1751272615583,146.9,149.52,149.47,4.50415043]
[1751272615802,146.9,149.52,149.5,4.50415043]
[1751272616004,30.50415043,149.54,149.5,4.50415043]
[1751272616318,30.50415043,149.54,149.46,6.02]
[1751272616493,30.50415043,149.54,149.49,4.50415043]
[1751272616696,30.50415043,149.54,149.5,4.50415043]
[1751272617311,30.50415043,149.54,149.49,4.50415043]
[1751272617495,35.85416173,149.54,149.49,4.50415043]
[1751272617684,26.0,149.54,149.5,4.50415043]
[1751272619116,26.0,149.54,149.5,9.85523616]
[1751272619415,30.50415043,149.54,149.5,9.85523616]
[1751272619807,33.86022403,149.54,149.5,9.85523616]
[1751272620113,4.50415043,149.55,149.51,4.50415043]
[1751272620327,177.40415043,149.56,149.51,4.50415043]
[1751272620492,146.9,149.56,149.53,4.50415043]
[1751272624403,151.40415043,149.56,149.52,10.52415043]
[1751272624921,146.9,149.56,149.52,15.87457325]
[1751272625217,151.40415043,149.56,149.52,15.87457325]
[1751272625415,146.9,149.56,149.52,15.87457325]
[1751272625733,151.40415043,149.56,149.52,15.87457325]
[1751272625916,146.9,149.56,149.52,15.87457325]
[1751272626226,151.40415043,149.56,149.52,10.52415043]
[1751272627118,146.9,149.56,149.52,15.87448905]
[1751272630321,147.0,149.56,149.52,15.87448905]
[1751272631912,0.1,149.56,149.52,15.87448905]
[1751272633027,0.1,149.56,149.53,9.85401773]
[1751272641632,0.1,149.56,149.53,5.3498673]
[1751272641824,0.1,149.56,149.53,9.85401773]
[1751272642019,4.60415043,149.56,149.53,5.3498673]
[1751272642225,0.1,149.56,149.53,5.3498673]
[1751272642441,4.60415043,149.56,149.53,5.3498673]
[1751272647244,4.60415043,149.56,149.53,5.5498673]
[1751272647741,4.60415043,149.56,149.53,5.3498673]
[1751272649439,0.1,149.56,149.53,9.85401773]
[1751272651964,0.1,149.56,149.53,8.23387612]
[1751272653628,0.1,149.56,149.53,5.3498673]
[1751272653827,0.1,149.56,149.53,8.23387612]
[1751272655134,0.1,149.56,149.53,5.3498673]
[1751272655336,2.88400882,149.54,149.52,6.02]
[1751272655544,2.88400882,149.53,149.52,6.02]
[1751272655746,39.24785127,149.56,149.52,6.02]
[1751272655747,2.88400882,149.54,149.52,6.02]
[1751272655940,7.8987,149.56,149.52,11.37043736]
[1751272656142,10.78270882,149.56,149.52,11.37043736]
[1751272657547,2.88400882,149.55,149.52,6.02]
[1751272659257,8.2334439,149.55,149.52,6.02]
[1751272659492,2.88400882,149.54,149.52,6.02]
[1751272659760,2.88400882,149.55,149.52,6.02]
[1751272661975,2.88400882,149.54,149.52,6.02]
[1751272662851,0.1,149.56,149.52,8.90400882]
[1751272663061,0.1,149.56,149.53,2.88400882]
[1751272664366,0.1,149.56,149.53,8.23387871]
[1751272665062,0.1,149.56,149.53,8.43387871]
[1751272669749,0.1,149.56,149.55,2.88400882]
[1751272671765,0.1,149.56,149.55,8.23339029]
[1751272675379,0.1,149.56,149.54,5.3497392]
[1751272675762,0.1,149.56,149.55,2.88400882]
[1751272678790,0.1,149.56,149.55,5.34938147]
[1751272678970,0.1,149.56,149.55,8.23339029]
[1751272682787,0.1,149.56,149.55,2.88400882]
[1751272684892,0.1,149.56,149.55,14.15339029]
[1751272686289,0.1,149.56,149.55,11.26938147]
[1751272686487,0.1,149.56,149.55,14.15339029]
[1751272690176,0.1,149.56,149.55,11.26938147]
[1751272690384,0.1,149.56,149.55,14.15339029]
[1751272692878,0.1,149.56,149.55,33.08736229]
[1751272693882,0.1,149.56,149.55,59.08736229]
[1751272694282,0.1,149.56,149.55,86.40736229]
[1751272694487,0.1,149.6,149.59,2.88400882]
[1751272694888,0.1,149.6,149.59,8.23195988]
[1751272699104,0.1,149.6,149.59,38.70196716]
[1751272699809,0.1,149.62,149.61,44.933972]
[1751272700100,0.1,149.62,149.61,53.67798082]
[1751272700802,0.1,149.62,149.61,59.02521696]
[1751272704199,0.1,149.65,149.62,18.933972]
[1751272704401,0.1,149.65,149.64,47.81798082]
[1751272705701,0.1,149.65,149.64,53.16414494]
[1751272706786,0.1,149.65,149.64,50.28013612]
[1751272707104,0.1,149.65,149.64,53.16414494]
[1751272710681,0.1,149.65,149.62,5.34687875]
[1751272710878,0.1,149.65,149.61,5.86]
[1751272710879,2.98400882,149.65,149.61,14.09112762]
[1751272711101,2.88400882,149.64,149.61,5.86]
[1751272711286,2.88400882,149.63,149.61,5.86]
[1751272711487,2.88400882,149.64,149.61,5.86]
[1751272711810,2.88400882,149.63,149.61,5.86]
[1751272711990,0.1,149.65,149.61,14.09120007]
[1751272712183,0.1,149.65,149.62,2.88400882]
[1751272715904,2.98400882,149.65,149.61,14.09120007]
[1751272717704,2.88400882,149.64,149.61,5.86]
[1751272723414,5.44592331,149.65,149.61,5.86]
[1751272723715,2.88400882,149.64,149.61,5.86]
[1751272724102,2.98400882,149.65,149.61,11.20722797]
[1751272724310,2.98400882,149.65,149.61,14.09123679]
[1751272726599,0.1,149.65,149.61,14.09123679]
[1751272727105,0.1,149.65,149.62,2.88400882]
[1751272727815,0.1,149.65,149.61,14.09123679]
[1751272730121,8.32991656,149.65,149.61,5.86]
[1751272730313,2.88400882,149.64,149.61,5.86]
[1751272731696,8.32991656,149.65,149.61,8.74400882]
[1751272734020,2.88400882,149.64,149.61,5.86]
[1751272735529,8.32991656,149.65,149.61,5.86]
[1751272735997,8.32991656,149.65,149.61,8.74400882]
[1751272738318,5.44590774,149.65,149.61,8.74400882]
[1751272738522,8.32991656,149.65,149.61,8.74400882]
[1751272739126,2.98400882,149.65,149.61,8.74400882]
[1751272739419,0.1,149.65,149.62,2.88400882]
[1751272740520,0.1,149.65,149.63,2.88400882]
[1751272741619,0.1,149.65,149.64,2.88400882]
[1751272743718,0.1,149.65,149.64,8.23017294]
[1751272744015,0.1,149.66,149.65,18.64964886]
[1751272744207,0.1,149.67,149.66,0.28432314]
[1751272744413,0.1,149.67,149.66,33.3540161]
[1751272745802,0.1,149.67,149.66,33.27161336]
[1751272747232,0.1,149.67,149.65,5.34572618]
[1751272747406,0.1,149.67,149.66,10.35609584]
[1751272747613,0.1,149.67,149.66,14.85219168]
[1751272747814,0.1,149.67,149.66,39.13161336]
[1751272748210,0.1,149.67,149.66,71.25901336]
[1751272752450,0.1,149.67,149.66,65.13161336]
[1751272753217,0.1,149.67,149.66,15.70154552]
[1751272758815,0.1,149.67,149.66,20.19764136]
[1751272759436,0.1,149.67,149.66,39.13161336]
[1751272768545,0.1,149.68,149.66,39.13161336]
[1751272768546,0.1,149.68,149.67,18.933972]
[1751272768729,0.1,149.68,149.67,50.71006784]
[1751272771549,0.1,149.68,149.67,56.05516037]
[1751272775842,0.1,149.68,149.67,54.43581994]
[1751272784238,0.1,149.68,149.67,5.34509253]
[1751272784436,0.1,149.68,149.67,11.18509253]
[1751272785252,0.1,149.68,149.67,14.06184794]
[1751272785561,0.1,149.68,149.67,11.18509253]
[1751272786765,0.1,149.68,149.67,15.68342987]
[1751272787957,0.1,149.68,149.67,11.18509253]
[1751272790142,0.1,149.68,149.67,5.84]
[1751272791067,0.1,149.68,149.67,10.33833734]
[1751272791672,0.1,149.68,149.67,5.84]
[1751272791870,0.1,149.68,149.67,11.18509253]
[1751272795965,0.1,149.68,149.67,15.68342987]
[1751272797054,0.1,149.68,149.67,10.33833734]
[1751272797453,4.59833734,149.68,149.67,5.84]
[1751272798867,0.1,149.68,149.67,5.84]
[1751272800956,0.1,149.68,149.67,10.33833734]
[1751272801168,0.1,149.68,149.67,5.84]
[1751272802649,0.1,149.68,149.67,15.68342987]
[1751272805772,0.1,149.68,149.67,14.06378132]
[1751272807776,0.1,149.68,149.67,15.68202732]
[1751272809679,0.1,149.68,149.67,11.18509253]
[1751272809886,0.1,149.68,149.67,15.68202732]
[1751272816482,0.1,149.68,149.67,34.61599932]
[1751272819092,0.1,149.68,149.67,15.96635046]
[1751272819664,0.1,149.68,149.67,34.61599932]
[1751272820279,0.1,149.68,149.67,61.85599932]
[1751272824386,0.1,149.68,149.67,15.68202732]
[1751272824688,0.1,149.68,149.67,5.84]
[1751272826888,0.1,149.68,149.67,15.68202732]
[1751272837797,0.1,149.68,149.67,15.96635046]
[1751272838191,0.1,149.68,149.62,5.34687875]
[1751272838403,0.1,149.68,149.65,4.49693479]
[1751272838580,0.1,149.68,149.64,10.33693479]
[1751272838781,0.1,149.68,149.65,4.49693479]
[1751272839390,0.1,149.68,149.66,2.49884009]
[1751272839583,0.1,149.68,149.65,4.49693479]
[1751272839790,0.1,149.68,149.66,2.49883925]
[1751272839991,0.1,149.68,149.67,2.49883925]
[1751272841299,0.1,149.68,149.67,2.49883893]
[1751272842104,4.59693479,149.68,149.67,2.49883893]
[1751272842290,0.1,149.68,149.67,2.49883893]
[1751272842491,4.59693479,149.68,149.67,2.49883893]
[1751272843410,4.59693479,149.68,149.64,15.68307938]
[1751272843791,0.1,149.68,149.64,15.68307938]
[1751272848308,0.1,149.68,149.65,4.49693479]
[1751272850011,0.1,149.68,149.64,11.18614459]
[1751272850315,4.59693479,149.68,149.64,15.68307938]
[1751272852420,0.1,149.68,149.64,15.68307938]
[1751272858220,0.1,149.68,149.65,4.49693479]
[1751272859524,0.1,149.68,149.65,9.84257493]
[1751272860025,0.1,149.68,149.66,2.879169]
[1751272861115,0.1,149.68,149.65,5.34564014]
[1751272861393,0.1,149.68,149.65,8.22480914]
[1751272867735,2.979169,149.68,149.65,5.34564014]
[1751272868035,2.979169,149.68,149.64,14.06529974]
[1751272868403,2.879169,149.67,149.64,5.84]
[1751272868600,6.3021,149.67,149.64,5.84]
[1751272868834,2.879169,149.65,149.64,5.84]
[1751272870618,2.879169,149.66,149.64,5.84]
[1751272871605,9.181269,149.67,149.64,5.84]
[1751272873836,10.80257817,149.67,149.64,5.84]
[1751272874524,6.3021,149.67,149.64,11.18610471]
[1751272875717,10.80257817,149.67,149.64,5.84]
[1751272882136,4.50047817,149.67,149.64,5.84]
[1751272882329,4.60047817,149.68,149.64,5.84]
[1751272883225,4.50047817,149.67,149.64,5.84]
[1751272885840,4.50047817,149.67,149.64,11.18603874]
[1751272888836,0.1,149.68,149.64,11.18603874]
[1751272889048,4.50047817,149.67,149.64,11.18603874]
[1751272891738,4.50047817,149.67,149.64,5.84]
[1751272895749,2.88016192,149.67,149.64,5.84]
[1751272896258,8.32500182,149.68,149.64,5.84]
[1751272896554,0.1,149.67,149.64,11.186152]
[1751272896856,0.1,149.67,149.65,2.88016192]
[1751272897530,0.1,149.67,149.65,8.22595227]
[1751272898451,0.1,149.67,149.64,5.84]
[1751272898654,2.88016192,149.66,149.64,5.84]
[1751272899029,2.88016192,149.65,149.64,5.84]
[1751272900848,8.22607113,149.65,149.59,5.34795106]
[1751272901051,8.22607113,149.65,149.6,8.70016192]
[1751272901234,2.88016192,149.64,149.6,8.70016192]
[1751272901752,2.88016192,149.64,149.6,14.04769931]
[1751272904858,2.88016192,149.64,149.6,11.16753739]
[1751272905157,2.88016192,149.64,149.6,14.04769931]
[1751272906463,5.34590921,149.65,149.6,14.04769931]
[1751272906464,2.88016192,149.65,149.61,2.88016192]
[1751272907940,8.22601755,149.65,149.61,2.88016192]
[1751272908140,8.22601755,149.65,149.6,11.16753739]
[1751272908341,2.88016192,149.64,149.6,8.70016192]
[1751272909762,2.88016192,149.64,149.6,14.04774534]
[1751272913160,2.88016192,149.64,149.6,8.70016192]
[1751272913465,8.22638888,149.64,149.6,5.82]
[1751272914133,8.22638888,149.64,149.6,8.70016192]
[1751272914538,8.22638888,149.64,149.6,5.82]
[1751272915047,8.22638888,149.64,149.6,8.70016192]
[1751272915566,8.22638888,149.64,149.6,5.82]
[1751272916868,2.88016192,149.63,149.6,5.82]
[1751272918160,2.88016192,149.62,149.6,5.82]
[1751272918361,2.88016192,149.61,149.6,5.82]
[1751272920247,8.22739806,149.61,149.6,5.82]
[1751272920652,15.89579806,149.61,149.55,0.2]
[1751272920848,2.88016192,149.56,149.55,0.2]
[1751272921360,2.88016192,149.57,149.55,0.2]
[1751272923873,5.348061,149.59,149.55,0.2]
[1751272924171,2.88016192,149.58,149.55,0.2]
[1751272925257,3.27150236,149.59,149.55,0.2]
[1751272925457,2.88016192,149.58,149.55,0.2]
[1751272925657,2.88016192,149.59,149.55,0.2]
[1751272925862,2.88016192,149.59,149.55,5.5493317]
[1751272926156,2.88016192,149.59,149.55,8.42949362]
[1751272926749,149.78016192,149.6,149.56,2.88016192]
[1751272926956,146.9,149.6,149.57,2.88016192]
[1751272927467,28.88016192,149.63,149.55,18.92278539]
[1751272927667,28.88016192,149.63,149.59,2.88016192]
[1751272927870,30.50301953,149.63,149.58,4.50301953]
[1751272928174,4.50301953,149.61,149.57,4.50301953]
[1751272928577,4.50301953,149.62,149.58,5.34830859]
[1751272931787,34.67318681,149.63,149.58,5.34830859]
[1751272931991,4.50301953,149.62,149.58,5.34830859]
[1751272932682,26.0,149.6,149.57,9.85168072]
[1751272932897,4.50301953,149.61,149.57,9.85168072]
[1751272933259,26.0,149.59,149.57,5.34866119]
[1751272933468,26.0,149.59,149.57,9.85168072]
[1751272934190,26.0,149.6,149.57,9.85168072]
[1751272935574,26.0,149.61,149.58,4.50301953]
[1751272935781,30.50301953,149.63,149.58,4.50301953]
[1751272935983,26.0,149.61,149.6,4.50301953]
[1751272937373,26.0,149.63,149.6,9.85061311]
[1751272937591,146.9,149.64,149.62,4.50301953]
[1751272937775,146.9,149.64,149.61,4.50301953]
[1751272939267,146.9,149.64,149.61,9.85012542]
[1751272940098,146.9,149.64,149.62,4.50301953]
[1751272940268,146.3,149.64,149.63,4.50301953]
[1751272941690,146.3,149.64,149.63,9.84954094]
[1751272942382,0.1,149.67,149.63,9.84954094]
[1751272943290,4.60301953,149.67,149.63,9.84954094]
[1751272944982,0.1,149.67,149.63,9.84954094]
[1751272946689,0.1,149.67,149.64,4.50301953]
[1751272947175,0.1,149.67,149.65,9.84882641]
[1751272947588,0.1,149.67,149.65,5.34580688]
[1751272948294,0.1,149.67,149.65,9.84882641]
[1751272949274,0.1,149.67,149.63,13.36617593]
[1751272949487,0.1,149.67,149.65,4.50301953]
[1751272951197,0.1,149.67,149.64,4.50301953]
[1751272951407,0.1,149.67,149.65,5.34580688]
[1751272952878,0.1,149.67,149.65,4.50301953]
[1751272953078,0.1,149.67,149.65,10.30301953]
[1751272954091,0.1,149.67,149.66,5.34544968]
[1751272956591,0.1,149.67,149.66,9.84846921]
[1751272957287,0.1,149.67,149.66,5.34544968]
[1751272959288,0.1,149.67,149.65,11.14570293]
[1751272959497,4.60301953,149.67,149.65,11.14570293]
[1751272959720,0.1,149.67,149.65,11.14570293]
[1751272960816,0.1,149.67,149.65,14.0256943]
[1751272961018,0.1,149.67,149.66,2.87999137]
[1751272961224,0.1,149.67,149.66,8.22544105]
[1751272962624,0.1,149.67,149.66,8.50976419]
[1751272962826,0.1,149.67,149.66,21.69142967]
[1751272963140,0.1,149.67,149.66,10.17146419]
[1751272963814,0.1,149.67,149.66,11.78811346]
[1751272968812,0.1,149.67,149.66,34.93440296]
[1751272970641,0.1,149.67,149.66,11.78811346]
[1751272972543,0.1,149.67,149.66,10.12641346]
[1751272972724,0.1,149.67,149.66,9.84209032]
[1751272980756,0.1,149.67,149.65,5.8]
[1751272981054,4.59664064,149.67,149.65,5.8]
[1751272982543,0.1,149.67,149.65,5.8]
[1751272982934,4.59664064,149.67,149.65,5.8]
[1751272985165,0.1,149.67,149.65,5.8]
[1751272985848,4.59664064,149.67,149.65,5.8]
[1751272989868,0.1,149.67,149.65,5.8]
[1751272991451,4.59664064,149.67,149.65,5.8]
[1751272991945,0.1,149.67,149.65,5.8]
[1751272994071,4.49664064,149.66,149.65,5.8]
[1751272995757,2.88060721,149.66,149.65,5.8]
[1751272995957,0.1,149.67,149.65,5.8]
[1751272996172,2.88060721,149.66,149.65,5.8]
[1751272997480,2.98060721,149.67,149.65,5.8]
[1751272997862,4.60036282,149.67,149.65,5.8]
[1751273004382,9.94550916,149.67,149.65,5.8]
[1751273005872,4.50036282,149.66,149.65,5.8]
[1751273006272,4.50036282,149.66,149.65,5.3]
[1751273009989,9.8458125,149.66,149.65,5.3]